bitfinex/quotes_SOLUSD_20260220
["timestamp","ask_amount","ask_price","bid_price","bid_amount"]
[1771564615329,0.45874504,82.669,82.646,0.45862471]
[1771564616058,0.45874504,82.669,82.648,0.45862471]
[1771564617156,0.45874504,82.673,82.65,0.45862471]
[1771564618054,0.45874504,82.669,82.65,0.45862471]
[1771564624854,0.45874504,82.669,82.649,12.09935994]
[1771564626364,0.38543105,82.669,82.649,12.09935994]
[1771564626746,0.38543105,82.669,82.648,0.46329012]
[1771564628951,0.38543105,82.669,82.649,12.09935994]
[1771564629150,0.38543105,82.669,82.65,0.48132063]
[1771564629353,12.09541337,82.676,82.65,0.48132063]
[1771564629753,12.55540162,82.676,82.65,0.48132063]
[1771564630081,0.45998825,82.675,82.65,0.48132063]
[1771564635773,0.45998825,82.673,82.65,0.48132063]
[1771564643086,0.45998825,82.673,82.652,0.48132063]
[1771564651182,0.45998825,82.679,82.654,0.48132063]
[1771564652580,12.09394664,82.686,82.656,0.48132063]
[1771564653181,0.45998825,82.685,82.656,0.48132063]
[1771564655288,0.45998825,82.685,82.661,0.48132063]
[1771564658687,0.45998825,82.685,82.66,3.79858726]
[1771564658688,0.45998825,82.685,82.663,0.47161844]
[1771564659588,0.4698064,82.691,82.664,12.09716442]
[1771564659795,0.4698064,82.691,82.665,0.47161844]
[1771564665495,0.4698064,82.691,82.666,12.09687174]
[1771564665801,0.4698064,82.699,82.671,0.47161844]
[1771564666293,0.4698064,82.71,82.681,0.47161844]
[1771564666703,0.4698064,82.709,82.681,0.47161844]
[1771564666878,0.4698064,82.699,82.671,0.47161844]
[1771564667483,0.4698064,82.699,82.672,12.0959938]
[1771564668000,0.4698064,82.699,82.672,12.56761224]
[1771564669788,0.4698064,82.699,82.673,0.47161844]
[1771564672587,0.4698064,82.699,82.675,0.47161844]
[1771564674830,0.4698064,82.698,82.675,0.47161844]
[1771564675204,0.4698064,82.698,82.676,12.09540858]
[1771564679215,0.4698064,82.689,82.662,12.56907555]
[1771564679515,0.4698064,82.689,82.663,0.47161844]
[1771564679715,0.4698064,82.689,82.641,16.37901633]
[1771564679716,0.4698064,82.689,82.657,0.47161844]
[1771564680632,0.4698064,82.669,82.646,0.47161844]
[1771564680828,0.4698064,82.669,82.643,0.47161844]
[1771564681231,0.4698064,82.669,82.645,0.47161844]
[1771564682131,12.09592924,82.673,82.657,0.47161844]
[1771564682326,3.79858726,82.68,82.651,0.47161844]
[1771564683730,3.79858726,82.68,82.652,12.09892077]
[1771564683929,0.45541485,82.679,82.652,12.09892077]
[1771564684834,0.45541485,82.683,82.652,12.09892077]
[1771564685240,0.45541485,82.679,82.652,12.09892077]
[1771564685733,0.45541485,82.679,82.653,0.45074122]
[1771564685936,0.45541485,82.679,82.655,0.45074122]
[1771564690943,0.45541485,82.679,82.657,0.46499711]
[1771564691644,3.79858726,82.68,82.624,0.46499711]
[1771564691645,0.47168767,82.669,82.624,0.46499711]
[1771564691943,12.09511599,82.678,82.624,0.46499711]
[1771564691944,0.47168767,82.649,82.624,0.46499711]
[1771564693143,3.79858726,82.64,82.619,0.46499711]
[1771564693334,0.47168767,82.639,82.619,0.46499711]
[1771564697751,0.47168767,82.646,82.621,0.46499711]
[1771564700961,3.79858726,82.68,82.62,3.79858726]
[1771564700962,0.47168767,82.669,82.641,0.46499711]
[1771564701349,0.47168767,82.676,82.651,0.46499711]
[1771564702247,0.47168767,82.682,82.651,0.46499711]
[1771564703452,0.47168767,82.682,82.653,0.46499711]
[1771564705658,30.23425076,82.688,82.653,0.46499711]
[1771564705659,0.47168767,82.678,82.653,0.46499711]
[1771564708960,0.47168767,82.676,82.653,0.46499711]
[1771564709343,0.47168767,82.676,82.643,0.46499711]
[1771564710756,0.47168767,82.669,82.643,0.46499711]
[1771564711056,0.47168767,82.659,82.636,0.46499711]
[1771564712573,0.47168767,82.659,82.626,0.46499711]
[1771564713965,0.47168767,82.657,82.626,0.46499711]
[1771564719161,0.49767501,82.655,82.628,0.49921268]
[1771564724069,3.80128872,82.66,82.63,0.49921268]
[1771564724245,4.29896373,82.66,82.631,0.49921268]
[1771564724446,0.49767501,82.659,82.631,0.49921268]
[1771564725669,0.49767501,82.659,82.632,12.10184916]
[1771564725859,0.49767501,82.659,82.633,0.49921268]
[1771564736072,0.49767501,82.659,82.634,12.10155626]
[1771564736279,0.49767501,82.659,82.635,0.49921268]
[1771564740457,0.49767501,82.657,82.625,0.49921268]
[1771564746386,0.49767501,82.657,82.627,0.47387499]
[1771564755198,0.49767501,82.657,82.629,0.47146469]
[1771564756701,0.49767501,82.657,82.631,0.47146469]
[1771564759199,0.49767501,82.657,82.633,0.47146469]
[1771564760396,0.49767501,82.657,82.62,3.80128872]
[1771564760617,0.4900272,82.639,82.607,0.47146469]
[1771564760787,0.4900272,82.629,82.607,12.5768799]
[1771564760987,0.3110553,82.629,82.61,0.57146469]
[1771564761591,3.80128872,82.65,82.61,0.57146469]
[1771564761592,3.80128872,82.64,82.612,0.47146469]
[1771564762908,0.4900272,82.639,82.614,0.47146469]
[1771564764799,0.4900272,82.639,82.615,12.1043394]
[1771564765004,0.4900272,82.639,82.616,0.47146469]
[1771564771812,30.24532067,82.658,82.6,0.1]
[1771564771813,0.4900272,82.629,82.6,0.1]
[1771564772117,0.4900272,82.619,82.6,0.1]
[1771564773605,0.4900272,82.599,82.59,0.1]
[1771564776094,0.4900272,82.599,82.58,0.1]
[1771564776300,0.4900272,82.599,82.581,0.47146469]
[1771564777518,0.49472475,82.603,82.582,0.4545283]
[1771564777814,12.10398568,82.618,82.582,0.4545283]
[1771564778220,12.10398568,82.618,82.591,0.4545283]
[1771564778796,12.10398568,82.618,82.593,0.4545283]
[1771564779296,12.59871043,82.618,82.593,0.4545283]
[1771564780017,0.49472475,82.617,82.593,0.4545283]
[1771564780816,0.49472475,82.626,82.595,0.4545283]
[1771564782619,0.49472475,82.626,82.597,0.4545283]
[1771564784009,0.49472475,82.626,82.598,12.10683067]
[1771564784219,0.49472475,82.626,82.599,0.4545283]
[1771564786619,0.49472475,82.626,82.601,0.4545283]
[1771564787606,0.49472475,82.635,82.601,0.4545283]
[1771564787923,12.1013004,82.636,82.601,0.4545283]
[1771564787924,0.49472475,82.629,82.601,0.4545283]
[1771564792824,0.49472475,82.634,82.603,0.4545283]
[1771564793121,0.49472475,82.639,82.603,0.4545283]
[1771564793700,12.10071232,82.64,82.611,0.4545283]
[1771564794617,0.49472475,82.644,82.611,0.4545283]
[1771564796609,0.49472475,82.644,82.613,0.4545283]
[1771564798504,0.49472475,82.655,82.621,0.4545283]
[1771564798715,0.49472475,82.655,82.623,0.4545283]
[1771564800631,12.09813332,82.658,82.625,0.4545283]
[1771564800812,12.59285807,82.658,82.625,0.4545283]
[1771564802024,12.09813332,82.658,82.625,0.4545283]
[1771564802233,0.49472475,82.657,82.625,0.4545283]
[1771564807335,0.47815016,82.655,82.627,0.47564074]
[1771564812653,0.47815016,82.649,82.61,0.47564074]
[1771564812835,0.47815016,82.649,82.611,0.47564074]
[1771564813169,0.47815016,82.649,82.615,0.47564074]
[1771564814546,0.47815016,82.649,82.617,0.47564074]
[1771564815048,0.47815016,82.649,82.621,0.47564074]
[1771564816140,0.47815016,82.656,82.623,0.47564074]
[1771564817043,0.47815016,82.655,82.623,0.47564074]
[1771564824351,0.47815016,82.649,82.624,12.10302091]
[1771564824958,0.47815016,82.649,82.624,12.57866165]
[1771564825150,0.47815016,82.649,82.625,0.47564074]
[1771564827233,0.47815016,82.649,82.626,12.10272795]
[1771564827435,0.47815016,82.649,82.627,0.47564074]
[1771564828857,0.47815016,82.649,82.629,0.47564074]
[1771564829038,12.09712026,82.665,82.631,0.47564074]
[1771564829238,0.47815016,82.664,82.631,0.47564074]
[1771564830438,0.47815016,82.664,82.632,12.10184916]
[1771564830638,0.47815016,82.664,82.633,0.47564074]
[1771564831060,0.47815016,82.659,82.633,0.47564074]
[1771564831433,0.47815016,82.659,82.59,3.80617306]
[1771564831434,0.47815016,82.649,82.614,0.47564074]
[1771564832555,0.47815016,82.649,82.621,0.47564074]
[1771564835549,0.47815016,82.649,82.623,0.47564074]
[1771564837657,0.47815016,82.649,82.624,12.10302091]
[1771564837967,0.47815016,82.649,82.625,0.45363773]
[1771564838653,0.47815016,82.649,82.601,0.14216157]
[1771564838654,3.80132836,82.63,82.591,0.5]
[1771564839648,3.80132836,82.62,82.591,0.5]
[1771564839858,15.90494943,82.62,82.591,0.5]
[1771564841672,3.80132836,82.65,82.593,0.5]
[1771564841673,12.10254401,82.628,82.593,0.5]
[1771564844459,3.80132836,82.63,82.601,0.5]
[1771564847876,3.80132836,82.64,82.603,0.5]
[1771564848054,3.80132836,82.65,82.611,0.5]
[1771564849556,3.80132836,82.65,82.613,0.5]
[1771564849864,3.80132836,82.65,82.602,30.265611]
[1771564849865,3.80132836,82.63,82.607,12.10537981]
[1771564855279,3.80132836,82.63,82.607,0.5]
[1771564858069,3.80132836,82.63,82.609,0.5]
[1771564859587,12.10228854,82.629,82.602,0.5]
[1771564859986,3.80132836,82.61,82.582,0.5]
[1771564860366,12.10228854,82.629,82.591,0.5]
[1771564860568,3.80132836,82.61,82.591,0.5]
[1771564860766,3.80132836,82.61,82.581,12.10932296]
[1771564860767,3.80132836,82.61,82.582,0.5]
[1771564861687,3.80132836,82.61,82.584,0.5]
[1771564863588,3.80132836,82.61,82.586,0.5]
[1771564865784,3.80132836,82.61,82.587,12.10844321]
[1771564865991,12.10421163,82.616,82.588,0.5]
[1771564866682,12.10421163,82.616,82.587,12.10844321]
[1771564866683,12.10375337,82.619,82.591,0.5]
[1771564869703,42.34929699,82.646,82.591,0.5]
[1771564869913,3.80132836,82.62,82.593,0.5]
[1771564871593,12.10375337,82.619,82.593,0.5]
[1771564872909,42.35134677,82.642,82.593,0.5]
[1771564873106,3.80132836,82.62,82.593,0.5]
[1771564878005,12.10375337,82.619,82.593,0.5]
[1771564884801,12.10375337,82.619,82.594,0.5]
[1771564885312,3.80132836,82.61,82.581,0.5]
[1771564885495,3.80132836,82.61,82.582,0.5]
[1771564886407,12.10375337,82.619,82.582,0.5]
[1771564888115,3.80132836,82.61,82.584,0.5]
[1771564891416,3.80132836,82.62,82.586,0.5]
[1771564891999,12.10375337,82.619,82.586,0.5]
[1771564893699,3.80132836,82.63,82.588,0.5]
[1771564896720,12.10228854,82.629,82.591,0.5]
[1771564896918,12.10228854,82.629,82.601,0.5]
[1771564897417,12.10117954,82.637,82.601,0.5]
[1771564897926,12.09978209,82.647,82.611,0.5]
[1771564899624,12.09978209,82.647,82.613,0.5]
[1771564904118,3.80182931,82.64,82.614,12.10448592]
[1771564904327,3.80182931,82.64,82.615,0.5]
[1771564906326,3.80182931,82.64,82.617,0.5]
[1771564907408,3.80182931,82.64,82.618,12.10389987]
[1771564907616,3.80182931,82.64,82.619,0.5]
[1771564910511,15.90257654,82.64,82.615,0.5]
[1771564910717,3.80182931,82.62,82.596,0.5]
[1771564911233,3.80182931,82.62,82.597,0.5]
[1771564911816,3.80182931,82.63,82.597,0.5]
[1771564913537,3.80182931,82.62,82.597,0.5]
[1771564914020,3.80182931,82.62,82.59,3.80182931]
[1771564914021,3.80182931,82.62,82.599,0.5]
[1771564914221,3.80182931,82.63,82.599,0.5]
[1771564926434,12.10228854,82.629,82.6,12.10653753]
[1771564926629,12.10228854,82.629,82.601,0.5]
[1771564932640,15.6310994,82.653,82.603,0.5]
[1771564932839,3.80182931,82.65,82.611,0.5]
[1771564933152,3.80182931,82.66,82.621,0.5]
[1771564934654,12.09789617,82.659,82.623,0.5]
[1771564938459,12.09789617,82.659,82.625,0.5]
[1771564939565,3.80182931,82.65,82.625,0.5]
[1771564943457,3.80182931,82.65,82.626,12.10272795]
[1771564943660,3.80182931,82.65,82.627,0.5]
[1771564945060,3.80182931,82.66,82.629,0.5]
[1771564948671,12.09570118,82.674,82.63,0.28432314]
[1771564948866,12.09526228,82.677,82.641,0.5]
[1771564950863,3.80182931,82.67,82.642,12.10038479]
[1771564951166,3.80182931,82.67,82.643,0.5]
[1771564955864,12.09541659,82.676,82.645,0.5]
[1771564956069,3.80182931,82.68,82.651,0.5]
[1771564956460,12.0949697,82.679,82.651,0.5]
[1771564956857,12.09410141,82.685,82.651,0.5]
[1771564957177,12.09204464,82.699,82.671,0.5]
[1771564957758,12.09058264,82.709,82.673,0.5]
[1771564959665,12.09058264,82.709,82.68,3.80182931]
[1771564959874,0.2,82.71,82.683,0.5]
[1771564961054,3.99590656,82.71,82.685,0.5]
[1771564962176,3.79590656,82.7,82.675,0.5]
[1771564964459,3.79590656,82.69,82.675,0.5]
[1771564966279,3.79590656,82.69,82.674,12.09559801]
[1771564966280,3.79590656,82.7,82.677,0.5]
[1771564966778,0.2,82.71,82.65,3.79590656]
[1771564966779,0.2,82.71,82.683,0.5]
[1771564966978,0.2,82.71,82.685,0.5]
[1771564966979,3.99590656,82.71,82.685,0.5]
[1771564968257,3.79590656,82.7,82.673,12.09570402]
[1771564968463,3.79590656,82.7,82.674,0.5]
[1771564969265,3.79590656,82.7,82.676,0.5]
[1771564969583,12.09058264,82.709,82.676,0.5]
[1771564970683,3.79590656,82.7,82.676,0.5]
[1771564971074,3.79590656,82.69,82.676,0.5]
[1771564971466,12.09210779,82.699,82.676,0.5]
[1771564971777,12.09058264,82.709,82.678,0.5]
[1771564972571,3.99590656,82.71,82.681,0.5]
[1771564972882,0.2,82.71,82.681,0.5]
[1771564973865,3.99590656,82.71,82.683,0.5]
[1771564974487,0.2,82.71,82.683,0.5]
[1771564974688,1e-08,82.74,82.701,0.42648471]
[1771564974866,0.5,82.785,82.734,0.28432314]
[1771564975066,16.07320957,82.8,82.733,3.69383402]
[1771564975067,0.7,82.8,82.777,6.31795544]
[1771564975373,0.2,82.8,82.78,3.79590656]
[1771564975572,3.99590656,82.82,82.794,0.3]
[1771564975573,0.2,82.82,82.794,0.3]
[1771564975871,0.2,82.82,82.778,0.42648471]
[1771564975872,3.79590656,82.84,82.811,12.07569042]
[1771564976275,12.07015172,82.849,82.811,12.07569042]
[1771564976471,3.79590656,82.84,82.811,12.07569042]
[1771564977079,3.79590656,82.84,82.801,0.3]
[1771564977584,0.47217885,82.829,82.8,15.87320124]
[1771564978881,0.47217885,82.829,82.794,12.07808314]
[1771564979091,12.07318909,82.829,82.794,12.07808314]
[1771564979403,0.47217885,82.819,82.794,12.07808314]
[1771564979993,0.47217885,82.819,82.788,30.19746048]
[1771564980190,0.47217885,82.819,82.788,30.49746048]
[1771564980380,0.47217885,82.819,82.789,0.3]
[1771564980782,0.47217885,82.819,82.791,0.3]
[1771564981592,0.47217885,82.819,82.792,12.07846168]
[1771564981791,0.47217885,82.819,82.792,12.37846168]
[1771564983893,0.47217885,82.819,82.793,0.3]
[1771564984575,0.47217885,82.819,82.794,12.07816991]
[1771564984982,0.47217885,82.819,82.795,0.3]
[1771564985378,0.47217885,82.819,82.8,3.79590656]
[1771564985583,0.47217885,82.819,82.771,0.28432314]
[1771564985806,0.47217885,82.819,82.79,3.79590656]
[1771564986691,0.47217885,82.819,82.79,16.17452472]
[1771564987194,0.47217885,82.819,82.791,0.3]
[1771564994290,0.47217885,82.819,82.792,12.07846168]
[1771564994498,0.47217885,82.819,82.792,12.37846168]
[1771564994802,0.49682923,82.817,82.78,3.79590656]
[1771564995395,0.49682923,82.817,82.781,0.3]
[1771564996396,0.49682923,82.815,82.783,0.3]
[1771564998491,0.49682923,82.809,82.783,0.3]
[1771564999985,3.79590656,82.8,82.776,12.08071255]
[1771565000294,3.79590656,82.83,82.776,12.08071255]
[1771565000295,0.49682923,82.804,82.781,0.3]
[1771565000602,15.8703997,82.82,82.783,0.47371083]
[1771565002101,3.79590656,82.81,82.783,0.47371083]
[1771565002492,0.49682923,82.809,82.783,0.47371083]
[1771565004211,0.49682923,82.809,82.785,0.47371083]
[1771565006596,0.49682923,82.809,82.787,0.47371083]
[1771565009313,0.49682923,82.809,82.788,12.5527561]
[1771565012410,12.0731214,82.829,82.789,0.47371083]
[1771565012601,3.79590656,82.83,82.791,0.47371083]
[1771565012806,0.49682923,82.829,82.801,0.47371083]
[1771565013917,3.79590656,82.82,82.801,0.47371083]
[1771565014305,0.49682923,82.847,82.801,0.47371083]
[1771565014514,0.49682923,82.842,82.803,0.47371083]
[1771565014703,3.79590656,82.84,82.803,0.47371083]
[1771565015023,4.29273579,82.84,82.803,0.47371083]
[1771565015216,0.49682923,82.839,82.803,0.47371083]
[1771565015718,0.49682923,82.831,82.803,0.47371083]
[1771565016098,0.49682923,82.836,82.803,0.47371083]
[1771565016820,0.49682923,82.836,82.805,0.47371083]
[1771565017924,0.49682923,82.836,82.807,0.46361185]
[1771565020323,0.49682923,82.836,82.806,12.07641958]
[1771565020324,0.49682923,82.836,82.809,0.46361185]
[1771565022029,0.49682923,82.836,82.811,0.46361185]
[1771565024231,0.49682923,82.836,82.813,0.46361185]
[1771565026829,0.49682923,82.836,82.814,12.07525297]
[1771565028924,0.49682923,82.836,82.814,0.46361185]
[1771565030033,0.49682923,82.836,82.815,0.46361185]
[1771565030236,0.49682923,82.836,82.81,12.07575966]
[1771565030737,0.49682923,82.836,82.811,0.46361185]
[1771565034139,0.48265979,82.829,82.812,12.53915645]
[1771565035338,0.48265979,82.849,82.813,0.46361185]
[1771565035644,0.48265979,82.847,82.813,0.46361185]
[1771565035939,0.48265979,82.839,82.813,0.46361185]
[1771565036122,0.48265979,82.839,82.814,12.07525297]
[1771565036324,0.48265979,82.839,82.815,0.46361185]
[1771565038442,0.48265979,82.839,82.814,12.07525297]
[1771565038443,0.48265979,82.839,82.817,0.46361185]
[1771565045551,0.48265979,82.839,82.819,0.46077286]
[1771565046049,0.48265979,82.839,82.812,0.46077286]
[1771565048642,0.48265979,82.839,82.813,12.07539879]
[1771565049758,0.48127618,82.829,82.801,12.54211636]
[1771565049959,12.07169069,82.839,82.801,12.07714882]
[1771565049960,0.48127618,82.819,82.801,12.07714882]
[1771565050743,0.48127618,82.819,82.793,12.07818792]
[1771565051069,3.78448445,82.81,82.793,12.54315546]
[1771565051234,4.26576063,82.81,82.793,12.54315546]
[1771565052035,0.48127618,82.809,82.793,12.54315546]
[1771565054548,0.48127618,82.809,82.794,0.46496754]
[1771565056863,0.48127618,82.809,82.789,0.46496754]
[1771565059758,0.48127618,82.809,82.791,0.46496754]
[1771565061166,0.48127618,82.809,82.793,0.46496754]
[1771565062266,3.78448445,82.83,82.793,0.46496754]
[1771565062267,0.48127618,82.829,82.793,0.46496754]
[1771565063562,0.48127618,82.829,82.795,0.46496754]
[1771565065954,0.48127618,82.829,82.797,0.46496754]
[1771565066848,0.48127618,82.829,82.801,0.46496754]
[1771565068652,0.48127618,82.829,82.803,0.46496754]
[1771565070367,0.48127618,82.829,82.805,0.46496754]
[1771565070872,0.48127618,82.842,82.805,0.46496754]
[1771565071774,0.48127618,82.839,82.805,0.46496754]
[1771565073967,0.48127618,82.839,82.807,0.46496754]
[1771565074872,0.48127618,82.839,82.806,12.07641958]
[1771565074873,0.48127618,82.838,82.806,12.07641958]
[1771565075061,0.48127618,82.829,82.806,12.07641958]
[1771565075374,0.48127618,82.829,82.807,0.46496754]
[1771565078489,0.48127618,82.829,82.809,0.46682066]
[1771565080276,0.48127618,82.829,82.81,12.54265691]
[1771565080484,0.48127618,82.829,82.81,0.46682066]
[1771565096898,0.48127618,82.829,82.801,12.07714882]
[1771565097097,0.46690013,82.827,82.795,12.54478061]
[1771565097395,0.46690013,82.819,82.795,12.54478061]
[1771565097591,0.46690013,82.819,82.796,0.46682066]
[1771565100398,0.46690013,82.809,82.776,0.46682066]
[1771565100582,12.07466975,82.818,82.777,0.46682066]
[1771565100583,0.46690013,82.799,82.777,0.46682066]
[1771565102782,0.46690013,82.799,82.745,20.9023182]
[1771565102783,0.47489655,82.849,82.791,0.4650013]
[1771565102982,0.47489655,82.829,82.801,0.4650013]
[1771565103990,0.47489655,82.829,82.803,0.4650013]
[1771565106619,0.47489655,82.829,82.805,0.4650013]
[1771565110804,0.4969364,82.839,82.811,0.4770518]
[1771565111010,0.2,82.85,82.822,0.4770518]
[1771565111192,0.2,82.85,82.806,42.26746853]
[1771565111193,0.2,82.85,82.831,0.4770518]
[1771565112505,0.2,82.85,82.833,0.4770518]
[1771565115300,0.2,82.85,82.835,0.4770518]
[1771565118190,0.2,82.86,82.841,0.4770518]
[1771565118394,0.2,82.87,82.841,0.4770518]
[1771565120117,0.2,82.87,82.843,0.4770518]
[1771565120608,0.2,82.87,82.842,42.24910068]
[1771565120609,0.2,82.87,82.851,0.4770518]
[1771565122713,0.2,82.87,82.853,0.4770518]
[1771565126310,0.2,82.87,82.855,0.4770518]
[1771565129027,0.21353603,82.869,82.854,12.06942332]
[1771565131023,0.21353603,82.869,82.843,0.4770518]
[1771565131230,0.21353603,82.869,82.841,12.07131734]
[1771565131525,0.21420878,82.859,82.842,0.4770518]
[1771565131727,0.21453734,82.869,82.842,0.4770518]
[1771565133429,0.21453734,82.869,82.844,0.4770518]
[1771565139631,0.21734633,82.867,82.844,0.4770518]
[1771565146940,3.98176387,82.87,82.844,0.4770518]
[1771565146941,0.21936768,82.865,82.844,0.4770518]
[1771565148243,12.06767552,82.866,82.832,30.18124928]
[1771565148244,0.21964357,82.859,82.832,0.45894196]
[1771565148430,0.21964357,82.849,82.832,0.45894196]
[1771565149025,3.78176387,82.85,82.832,0.45894196]
[1771565149726,0.21991691,82.853,82.832,0.45894196]
[1771565153550,3.78176387,82.85,82.832,0.45894196]
[1771565154831,4.00324369,82.85,82.832,0.45894196]
[1771565156940,3.78176387,82.85,82.832,0.45894196]
[1771565160156,3.78176387,82.85,82.833,12.07248318]
[1771565160349,3.78176387,82.85,82.834,0.45894196]
[1771565160867,0.22197579,82.852,82.834,0.45894196]
[1771565161159,0.22294936,82.856,82.834,0.45894196]
[1771565162634,0.22340994,82.858,82.834,0.45894196]
[1771565162838,12.06808746,82.864,82.836,0.47031959]
[1771565163067,3.98176387,82.87,82.841,0.47031959]
[1771565163068,0.2,82.87,82.841,0.47031959]
[1771565164351,12.06723865,82.869,82.841,0.47031959]
[1771565165164,12.06723865,82.869,82.842,12.07117162]
[1771565165476,12.06723865,82.869,82.843,0.47031959]
[1771565166751,12.06723865,82.869,82.845,0.47031959]
[1771565167360,0.2,82.87,82.851,0.47494856]
[1771565167538,0.2,82.88,82.852,0.47494856]
[1771565168360,12.26575644,82.88,82.852,0.47494856]
[1771565168564,12.69107096,82.88,82.852,0.47494856]
[1771565170848,12.69107096,82.88,82.86,3.78176387]
[1771565171063,12.69107096,82.88,82.861,0.47494856]
[1771565171264,12.26575644,82.88,82.861,0.47494856]
[1771565173746,0.2,82.88,82.863,0.47494856]
[1771565175650,0.2,82.88,82.86,3.78176387]
[1771565175651,0.2,82.88,82.87,3.78176387]
[1771565175863,0.2,82.88,82.871,0.47494856]
[1771565176072,0.62659384,82.89,82.871,0.47494856]
[1771565176562,0.42659384,82.889,82.871,0.47494856]
[1771565176865,0.2,82.89,82.871,0.47494856]
[1771565178159,0.2,82.89,82.881,0.47494856]
[1771565179361,0.2,82.91,82.892,0.47494856]
[1771565179865,0.49178695,82.909,82.892,0.47494856]
[1771565180268,0.49178695,82.909,82.894,0.47494856]
[1771565180785,3.98176387,82.92,82.893,12.06374482]
[1771565180786,0.2,82.92,82.91,3.78176387]
[1771565181063,0.2,82.92,82.911,0.47494856]
[1771565181274,0.49178695,82.931,82.912,0.47494856]
[1771565182465,0.49178695,82.931,82.914,0.47494856]
[1771565183963,12.05560227,82.949,82.92,3.78176387]
[1771565184168,12.05560227,82.949,82.921,0.47494856]
[1771565184557,0.49178695,82.948,82.923,0.47494856]
[1771565185272,0.49178695,82.948,82.931,0.47494856]
[1771565185594,3.88176387,82.96,82.922,12.05952581]
[1771565185595,0.1,82.96,82.941,0.47494856]
[1771565185761,0.1,82.96,82.922,102.50596944]
[1771565185762,0.49178695,82.981,82.951,0.47494856]
[1771565185954,0.49178695,82.986,82.961,0.47494856]
[1771565186259,0.49178695,83.003,82.971,0.47494856]
[1771565186461,0.49178695,83.003,82.97,3.78176387]
[1771565186462,12.5396884,83.003,82.973,0.47494856]
[1771565186772,12.5396884,83.003,82.972,12.05225859]
[1771565186773,0.49178695,83.003,82.981,0.47494856]
[1771565188155,0.49178695,83.001,82.981,0.47494856]
[1771565188871,0.49178695,83.006,82.982,0.47494856]
[1771565189566,0.49178695,82.999,82.969,0.47494856]
[1771565189764,0.49178695,82.999,82.971,0.47494856]
[1771565190886,0.49178695,82.979,82.952,0.47494856]
[1771565193069,0.49178695,82.979,82.954,0.47494856]
[1771565194382,0.49178695,82.979,82.95,3.78176387]
[1771565194383,0.49178695,82.989,82.961,0.47494856]
[1771565195074,12.0481528,83.001,82.971,0.47494856]
[1771565195075,0.49178695,83.0,82.971,0.47494856]
[1771565196589,0.49178695,83.0,82.973,0.47494856]
[1771565198185,0.4969357,82.998,82.973,0.47494856]
[1771565199081,0.4969357,82.998,82.967,0.48751546]
[1771565200774,3.78176387,83.0,82.952,0.48751546]
[1771565200775,0.4969357,82.989,82.952,0.48751546]
[1771565200973,0.4969357,82.989,82.96,3.78176387]
[1771565201169,0.4969357,82.989,82.961,12.05385663]
[1771565201378,0.4969357,82.989,82.962,0.48751546]
[1771565202504,0.4969357,82.988,82.962,0.48751546]
[1771565203473,0.4969357,82.999,82.971,0.48751546]
[1771565204307,0.4969357,82.999,82.98,3.78176387]
[1771565205089,0.4969357,83.007,82.981,0.48751546]
[1771565205992,0.4969357,83.025,83.001,0.48751546]
[1771565206192,0.4969357,83.038,83.011,0.48751546]
[1771565206373,0.4969357,83.038,83.021,0.48751546]
[1771565207091,0.4969357,83.038,83.011,0.48751546]
[1771565208185,0.4969357,83.029,83.001,0.48751546]
[1771565208698,0.4969357,83.037,83.011,0.48751546]
[1771565210689,30.10136601,83.053,83.02,4.25438778]
[1771565210690,0.4969357,83.043,83.02,4.25438778]
[1771565211699,0.4969357,83.041,83.02,4.25438778]
[1771565212693,0.4969357,83.049,83.022,0.48751546]
[1771565212896,12.04037745,83.054,83.031,0.48751546]
[1771565213074,0.4969357,83.053,83.031,0.48751546]
[1771565213795,0.4969357,83.051,83.022,0.48751546]
[1771565214190,0.4969357,83.049,83.022,0.48751546]
[1771565215196,12.04064923,83.052,82.98,3.76687232]
[1771565215197,0.4969357,83.039,83.011,0.48751546]
[1771565216183,0.4969357,83.037,83.011,0.48751546]
[1771565217901,0.4969357,83.037,82.98,3.76687232]
[1771565217902,0.4969357,83.029,83.004,0.48751546]
[1771565218789,3.76687232,83.02,82.99,12.04949969]
[1771565218994,0.4969357,83.009,82.982,0.48751546]
[1771565222389,0.4969357,83.008,82.982,0.48751546]
[1771565223002,0.49858415,83.02,82.991,0.48695764]
[1771565223207,0.49858415,83.02,82.99,3.76687232]
[1771565223208,0.49858415,83.036,83.011,0.48695764]
[1771565224408,0.49858415,83.036,83.013,0.48695764]
[1771565225215,0.49858415,83.029,83.0,3.76687232]
[1771565225512,0.49858415,83.029,83.0,4.25382996]
[1771565225704,0.49858415,83.029,83.0,3.76687232]
[1771565225905,0.49858415,83.029,83.001,0.48695764]
[1771565226109,0.49858415,83.029,83.01,3.76687232]
[1771565226418,0.49858415,83.029,83.011,0.48695764]